fUST/lending_fUST_20250826
["ID","MTS","AMOUNT","RATE_DAILY","PERIOD"]
[381323145,1756137638990,200.98712894,0.000199,2]
[381323146,1756137639132,200.98712871,0.00021754,2]
[381323147,1756137639270,200.98712871,0.00023609,2]
[381323148,1756137639574,200.98712871,0.00025463,3]
[381323149,1756137639621,200.98712871,0.00027318,7]
[381323150,1756137639734,200.98712871,0.00029172,11]
[381323151,1756137639863,200.98712871,0.00031027,15]
[381323152,1756137640010,200.98712871,0.00032881,19]
[381323153,1756137640173,200.98712871,0.00034736,23]
[381323154,1756137640293,200.98712871,0.0003659,27]
[381323156,1756137659562,184.906809,0.00037086,2]
[381323157,1756137664408,207.17869043,0.00037527,2]
[381323158,1756137666933,310.76803564,0.00037527,2]
[381323159,1756137667981,155.38401782,0.00037527,2]
[381323160,1756137672337,151.0,0.0003659,27]
[381323161,1756137682171,151.0,0.000366,27]
[381323162,1756137691911,229.57063102,0.000367,27]
[381323163,1756137803351,7655.0366268,0.00037214,120]
[381323164,1756137835315,284.707486,0.00025778,2]
[381323165,1756137835669,280.75086612,0.00026044,2]
[381323166,1756137844184,201.01951289,0.000199,2]
[381323167,1756137844329,201.01951283,0.00022845,2]
[381323168,1756137844489,201.01951283,0.00025791,4]
[381323169,1756137844662,201.01951283,0.00028736,10]
[381323170,1756137844895,201.01951283,0.00031681,16]
[381323171,1756137845055,201.01951283,0.00034626,23]
[381323172,1756137845220,201.01951283,0.00037572,29]
[381323173,1756137845512,155.38401781,0.00037527,2]
[381323174,1756137871265,200.0,0.00033104,120]
[381323175,1756137941598,298.2203564,0.0003731,2]
[381323176,1756137942631,155.19,0.0002849,15]
[381323177,1756137977143,1000.0,0.0003731,30]
[381323178,1756137979025,10000.01,0.0003731,2]
[381323179,1756137979048,9000.01,0.0003731,2]
[381323180,1756137979071,7547.0344065,0.0003731,2]
[381323181,1756138007672,200.6959772,0.00037243,2]
[381323182,1756138030116,-200.0,0.00038278,120]
[381323183,1756138030141,-152.480799,0.00038425,20]
[381323184,1756138030168,-269.84056224,0.0003843,120]
[381323185,1756138030199,-973.0,0.0003876,2]
[381323186,1756138030222,-156.0,0.000389,120]
[381323187,1756138030247,-152.480799,0.00039203,7]
[381323188,1756138030270,-361.5922721,0.00039381,5]
[381323191,1756138041917,206.33905986,0.000199,2]
[381323192,1756138042040,206.33905977,0.00024907,2]
[381323193,1756138042177,206.33905977,0.00029914,13]
[381323194,1756138042299,206.33905977,0.00034921,23]
[381323196,1756138140839,5000.0,0.00037,120]
[381323197,1756138170393,480.73110418,0.0003797,2]
[381323198,1756138219392,207.25326128,0.000199,2]
[381323226,1756138235056,207.2532612,0.00026159,4]
[381323227,1756138235276,207.2532612,0.00032418,18]
[381323268,1756138240051,-199.0,0.00038178,120]
[381323270,1756138240065,-199.0,0.00038178,120]
[381323273,1756138240077,-162.5,0.00038676,31]
[381323838,1756138246173,-44.7532612,0.00038676,31]
[381323840,1756138246183,-85329.20920809,0.0003899,2]
[381323842,1756138246192,-685.57925327,0.00039383,2]
[381323844,1756138246202,-168.0,0.00039471,2]
[381323847,1756138246211,-839.0,0.00039498,5]
[381323850,1756138246221,-400.0,0.00039498,5]
[381323853,1756138246231,-1200.0,0.00039499,5]
[381323856,1756138246241,-199.0,0.00039499,5]
[381323859,1756138246251,-2000.0,0.000395,60]
[381323862,1756138246261,-199.0,0.00039555,120]
[381323866,1756138246270,-30351.3446344,0.00039649,2]
[381323869,1756138246281,-200.0,0.00039655,120]
[381323872,1756138246290,-3799.9592309,0.00039671,2]
[381323875,1756138246300,-152.480799,0.00039703,60]
[381323878,1756138246309,-3799.95923086,0.00039709,2]
[381323881,1756138246319,-500.0,0.0003971,15]
[381323883,1756138246329,-462.64880358,0.0003971,15]
[381323885,1756138246339,-529.29072822,0.00039711,3]
[381323887,1756138246349,-217.12848614,0.00039711,3]
[381323889,1756138246359,-160.0,0.00039711,3]
[381323890,1756138246368,-376.30788339,0.00039711,3]
[381323892,1756138246378,-160.0,0.00039711,3]
[381323894,1756138246387,-31065.9386014,0.00039711,3]
[381323896,1756138246397,-3911.41672248,0.00039711,3]
[381323898,1756138246406,-173.54,0.00039711,3]
[381323900,1756138246416,-520.62,0.00039711,3]
[381323902,1756138246427,-152.480799,0.00039719,5]
[381323905,1756138246438,-326.36843977,0.0003972,15]
[381323907,1756138246448,-1198.23,0.0003972,120]
[381323909,1756138246458,-121047.34838204,0.00039721,2]
[381325374,1756138392153,163.363429,0.00013699,2]
[381325375,1756138415984,211.0493568,0.000199,2]
[381325376,1756138416132,211.0493568,0.00032418,18]
[381325377,1756138520476,165.19,0.00028504,15]
[381325378,1756138588446,211.0493568,0.000199,2]
[381325379,1756138671667,954.672398,0.0003708,2]
[381325380,1756138765533,211.0493568,0.000199,2]
[381325382,1756138936726,211.0493568,0.000199,2]
[381325383,1756138946746,5336.0892766,0.00037297,2]
[381325384,1756138972405,5010.0,0.00031245,2]
[381325385,1756139051247,1000.0,0.00037059,30]
[381325395,1756139217246,3241.8220098,0.00036721,2]
[381325399,1756139251097,-273.0,0.0003672,2]
[381325400,1756139251120,-1096.0,0.0003672,3]
[381325401,1756139251140,-2349.12572246,0.00036721,2]
[381325402,1756139288396,-4048.24464741,0.00036721,2]
[381325403,1756139288455,-5000.0,0.00036721,2]
[381325404,1756139288588,-5000.0,0.00036721,2]
[381325405,1756139288817,-5000.0,0.00036721,2]
[381325406,1756139289074,-5000.0,0.00036721,2]
[381325407,1756139289286,-5000.0,0.00036721,2]
[381325408,1756139289623,-5000.0,0.00036721,2]
[381325409,1756139289853,-1523.30273023,0.00036721,2]
[381325410,1756139289883,-844.86965257,0.00036721,2]
[381325411,1756139314496,263.6552344,0.00029003,120]
[381325412,1756139314520,5000.0,0.00029003,120]
[381325413,1756139314544,5000.0,0.00029003,120]
[381325414,1756139314566,5000.0,0.00029003,120]
[381325415,1756139314588,5000.0,0.00029003,120]
[381325416,1756139314609,745.14535132,0.00029003,120]
[381325448,1756139401337,190.0,0.00031245,10]
[381325470,1756139432174,-228.02208226,0.00039231,2]
[381325471,1756139432184,-183.51227797,0.0003937,2]
[381325473,1756139432194,-222.0,0.00039411,120]
[381325475,1756139432204,-63673.06256371,0.00039476,2]
[381325480,1756139432253,-19037.86771039,0.00039476,2]
[381325483,1756139432263,-160.0,0.0003949,2]
[381325486,1756139432273,-2279.97553854,0.00039501,2]
[381325488,1756139432284,-6833.0136288,0.0003952,2]
[381325490,1756139432294,-2279.97553851,0.00039546,2]
[381325492,1756139432304,-199.0,0.00039555,120]
[381325494,1756139432314,-2350.14209793,0.00039591,3]
[381325496,1756139432324,-293.35625419,0.00039591,3]
[381325498,1756139432334,-2279.97553851,0.00039591,2]
[381325500,1756139432345,-401.58,0.000396,14]
[381325502,1756139432354,-18801.1367834,0.00039601,3]
[381325504,1756139432364,-482.10315876,0.00039601,3]
[381325506,1756139432376,-1864.74687476,0.00039601,3]
[381325507,1756139432386,-160.0,0.00039601,3]
[381325508,1756139432396,-347.08,0.00039601,3]
[381325510,1756139432406,-354.42852406,0.0003961,15]
[381325512,1756139432416,-160.41219813,0.0003961,10]
[381325514,1756139432426,-1511.29,0.0003961,120]
[381325516,1756139432436,-1445.20152683,0.0003961,61]
[381325517,1756139432445,-105248.92459096,0.00039611,2]
[381325519,1756139432461,-23906.26982307,0.00039611,2]
[381325550,1756139438108,-199.0,0.00039455,120]
[381325552,1756139438118,-571.37750259,0.00039611,2]
[381325555,1756139438130,-559.50148452,0.00039611,2]
[381325557,1756139438144,-5066.81263764,0.00039611,2]
[381325559,1756139438156,-64302.59878913,0.00039611,2]
[381325561,1756139438167,-5056.85840394,0.00039611,2]
[381325565,1756139438191,-551.33911759,0.00039611,2]
[381325567,1756139438202,-5252.05896771,0.00039611,2]
[381325569,1756139438214,-276.78040819,0.00039611,2]
[381325752,1756139440251,-199.0,0.00039455,120]
[381325754,1756139440260,-89950.3101128,0.00039611,2]
[381326012,1756139443140,1006.64757988,0.00031245,120]
[381326022,1756139443237,-2701.5556041,0.00039611,2]
[381326340,1756139446405,-66555.61255776,0.00039611,2]
[381326342,1756139446415,-152.480799,0.0003962,5]
[381326344,1756139446424,-2279.97553851,0.00039636,2]
[381326346,1756139446433,-2279.97553851,0.00039681,2]
[381326348,1756139446443,-800.0,0.00039701,7]
[381326350,1756139446453,-4700.28419586,0.00039709,3]
[381326352,1756139446462,-586.71250838,0.00039709,3]
[381326354,1756139446471,-500.0,0.00039719,120]
[381326356,1756139446485,-500.0,0.00039719,60]
[381326358,1756139446495,-500.0,0.00039719,60]
[381326360,1756139446505,-500.0,0.00039719,60]
[381326362,1756139446514,-500.0,0.00039719,60]
[381326364,1756139446525,-500.0,0.00039719,60]
[381326366,1756139446535,-151.0,0.00039719,60]
[381326368,1756139446544,-151.0,0.00039719,60]
[381326370,1756139446556,-281.001005,0.00039719,30]
[381326372,1756139446566,-151.0,0.00039719,30]
[381326374,1756139446575,-151.0,0.00039719,60]
[381326376,1756139446589,-151.0,0.00039719,30]
[381326378,1756139446598,-151.0,0.00039719,30]
[381326380,1756139446608,-151.0,0.00039719,60]
[381326381,1756139446618,-151.0,0.00039719,30]
[381326384,1756139446628,-151.0,0.00039719,60]
[381326385,1756139446638,-151.0,0.00039719,30]
[381326388,1756139446648,-151.0,0.00039719,30]
[381326389,1756139446658,-151.0,0.00039719,30]
[381326391,1756139446667,-151.0,0.00039719,30]
[381326393,1756139446676,-151.0,0.00039719,30]
[381326395,1756139446685,-151.0,0.00039719,30]
[381326397,1756139446695,-151.0,0.00039719,30]
[381326399,1756139446705,-151.0,0.00039719,30]
[381326401,1756139446714,-301.634676,0.00039719,30]
[381326403,1756139446723,-151.0,0.00039719,30]
[381326405,1756139446733,-151.0,0.00039719,2]
[381326407,1756139446742,-151.0,0.00039719,60]
[381326409,1756139446752,-151.0,0.00039719,30]
[381326411,1756139446761,-151.0,0.00039719,60]
[381326413,1756139446770,-151.0,0.00039719,30]
[381326416,1756139446780,-151.0,0.00039719,30]
[381326418,1756139446790,-151.0,0.00039719,30]
[381326419,1756139446799,-297.72845,0.00039719,30]
[381326422,1756139446809,-297.72845,0.00039719,30]
[381326424,1756139446818,-158.96788,0.00039719,30]
[381326426,1756139446828,-297.72845,0.00039719,30]
[381326428,1756139446840,-158.96788,0.00039719,30]
[381326429,1756139446849,-297.72845,0.00039719,30]
[381326431,1756139446858,-158.96788,0.00039719,30]
[381326433,1756139446868,-158.96788,0.00039719,30]
[381326435,1756139446877,-151.0,0.00039719,30]
[381326437,1756139446887,-151.0,0.00039719,30]
[381326439,1756139446897,-151.0,0.00039719,30]
[381326442,1756139446909,-151.0,0.00039719,30]
[381326444,1756139446919,-151.0,0.00039719,30]
[381326446,1756139446928,-151.0,0.00039719,30]
[381326448,1756139446938,-151.0,0.00039719,30]
[381326450,1756139446947,-552.967885,0.00039719,30]
[381326452,1756139446958,-552.967885,0.00039719,30]
[381326454,1756139446967,-552.967885,0.00039719,30]
[381326456,1756139446977,-552.967885,0.00039719,30]
[381326458,1756139446986,-151.0,0.00039719,30]
[381326460,1756139446995,-164.828353,0.00039719,30]
[381326462,1756139447006,-151.0,0.00039719,30]
[381326464,1756139447018,-151.0,0.00039719,30]
[381326466,1756139447029,-151.0,0.00039719,30]
[381326468,1756139447038,-151.0,0.00039719,30]
[381326470,1756139447048,-161.565312,0.00039719,30]
[381326472,1756139447057,-151.0,0.00039719,30]
[381326474,1756139447067,-151.0,0.00039719,30]
[381326476,1756139447076,-151.0,0.00039719,30]
[381326478,1756139447086,-151.0,0.00039719,60]
[381326480,1756139447095,-151.0,0.00039719,30]
[381326482,1756139447104,-500.0,0.00039719,60]
[381326484,1756139447114,-500.0,0.00039719,60]
[381326486,1756139447123,-151.0,0.00039719,60]
[381326488,1756139447133,-151.0,0.00039719,60]
[381326490,1756139447142,-500.0,0.00039719,60]
[381326492,1756139447151,-238.792231,0.00039719,30]
[381326494,1756139447161,-238.792231,0.00039719,30]
[381326496,1756139447170,-1212.0,0.00039719,60]
[381326498,1756139447180,-388.68186,0.00039719,30]
[381326500,1756139447191,-238.792231,0.00039719,30]
[381326502,1756139447200,-151.0,0.00039719,30]
[381326504,1756139447210,-388.68186,0.00039719,30]
[381326506,1756139447219,-238.792231,0.00039719,30]
[381326508,1756139447228,-388.68186,0.00039719,30]
[381326510,1756139447238,-160.0,0.00039719,30]
[381326512,1756139447248,-160.0,0.00039719,120]
[381326514,1756139447257,-388.68186,0.00039719,30]
[381326516,1756139447267,-151.0,0.00039719,60]
[381326518,1756139447276,-151.33538967,0.00039719,60]
[381326520,1756139447286,-500.0,0.00039719,60]
[381326522,1756139447295,-151.0,0.00039719,60]
[381326524,1756139447304,-151.0,0.00039719,60]
[381326526,1756139447313,-151.0,0.00039719,60]
[381326528,1756139447323,-225.88275939,0.00039719,60]
[381326530,1756139447332,-500.0,0.00039719,60]
[381326532,1756139447342,-151.0,0.00039719,60]
[381326534,1756139447352,-278.09310459,0.00039719,60]
[381326536,1756139447361,-154.59044902,0.00039719,60]
[381326537,1756139447371,-500.0,0.00039719,60]
[381326539,1756139447381,-500.0,0.00039719,60]
[381326541,1756139447390,-151.0,0.00039719,60]
[381326544,1756139447402,-500.0,0.00039719,60]
[381326546,1756139447412,-151.0,0.00039719,60]
[381326548,1756139447422,-151.5643363,0.00039719,120]
[381326549,1756139447435,-300.0,0.00039719,120]
[381326552,1756139447445,-16000.0,0.00039719,120]
[381326554,1756139447455,-151.0,0.00039719,120]
[381326556,1756139447464,-300.0,0.00039719,120]
[381326558,1756139447475,-12260.85519966,0.00039719,120]
[381326560,1756139447489,-151.0,0.00039719,120]
[381326562,1756139447500,-300.0,0.00039719,120]
[381326564,1756139447510,-151.0,0.00039719,60]
[381326566,1756139447520,-151.0,0.00039719,120]
[381326568,1756139447531,-300.0,0.00039719,120]
[381326570,1756139447542,-151.0,0.00039719,120]
[381326572,1756139447552,-151.0,0.00039719,120]
[381326574,1756139447563,-300.0,0.00039719,120]
[381326576,1756139447572,-151.0,0.00039719,120]
[381326578,1756139447583,-500.0,0.00039719,120]
[381326580,1756139447593,-151.0,0.00039719,120]
[381326582,1756139447602,-300.0,0.00039719,120]
[381326584,1756139447612,-156.587,0.00039719,120]
[381326585,1756139447622,-151.0,0.00039719,60]
[381326587,1756139447632,-500.0,0.00039719,120]
[381326589,1756139447644,-162.380719,0.00039719,120]
[381326591,1756139447655,-300.0,0.00039719,120]
[381326594,1756139447665,-151.0,0.00039719,120]
[381326595,1756139447675,-151.0,0.00039719,2]
[381326598,1756139447685,-500.0,0.00039719,120]
[381326600,1756139447695,-300.0,0.00039719,120]
[381326601,1756139447706,-168.3888056,0.00039719,120]
[381326603,1756139447717,-151.0,0.00039719,120]
[381326606,1756139447726,-500.0,0.00039719,120]
[381326608,1756139447736,-300.0,0.00039719,120]
[381326610,1756139447747,-174.61919141,0.00039719,120]
[381326612,1756139447757,-500.0,0.00039719,120]
[381326614,1756139447767,-151.0,0.00039719,120]
[381326616,1756139447777,-500.0,0.00039719,60]
[381326618,1756139447787,-300.0,0.00039719,120]
[381326619,1756139447796,-151.0,0.00039719,120]
[381326621,1756139447806,-181.08010149,0.00039719,120]
[381326624,1756139447816,-151.0,0.00039719,120]
[381326626,1756139447825,-500.0,0.00039719,120]
[381326627,1756139447835,-300.0,0.00039719,120]
[381326629,1756139447847,-187.78006525,0.00039719,120]
[381326631,1756139447857,-245.86959066,0.00039719,120]
[381326633,1756139447867,-500.0,0.00039719,120]
[381326635,1756139447877,-151.0,0.00039719,120]
[381326637,1756139447887,-300.0,0.00039719,120]
[381326639,1756139447900,-194.72792766,0.00039719,120]
[381326642,1756139447911,-151.0,0.00039719,120]
[381326643,1756139447922,-300.0,0.00039719,120]
[381326645,1756139447932,-500.0,0.00039719,120]
[381326647,1756139447941,-151.0,0.00039719,120]
[381326649,1756139447951,-300.0,0.00039719,120]
[381326651,1756139447961,-151.0,0.00039719,120]
[381326654,1756139447971,-201.93286099,0.00039719,120]
[381326656,1756139447981,-500.0,0.00039719,120]
[381326658,1756139447991,-151.0,0.00039719,120]
[381326659,1756139448001,-300.0,0.00039719,120]
[381326662,1756139448013,-209.40437684,0.00039719,120]
[381326664,1756139448023,-500.0,0.00039719,120]
[381326665,1756139448033,-151.0,0.00039719,120]
[381326668,1756139448044,-151.0,0.00039719,120]
[381326670,1756139448054,-217.15233878,0.00039719,120]
[381326672,1756139448064,-151.0,0.00039719,120]
[381326674,1756139448075,-500.0,0.00039719,120]
[381326675,1756139448084,-300.0,0.00039719,120]
[381326678,1756139448095,-164.85238816,0.00039719,120]
[381326680,1756139448104,-151.0,0.00039719,120]
[381326682,1756139448116,-225.18697532,0.00039719,120]
[381326684,1756139448125,-151.0,0.00039719,120]
[381326686,1756139448135,-233.51889341,0.00039719,120]
[381326688,1756139448147,-300.0,0.00039719,120]
[381326690,1756139448157,-500.0,0.00039719,120]
[381326692,1756139448167,-151.0,0.00039719,120]
[381326694,1756139448177,-151.0,0.00039719,120]
[381326696,1756139448188,-242.15909246,0.00039719,120]
[381326698,1756139448199,-300.0,0.00039719,120]
[381326700,1756139448209,-500.0,0.00039719,120]
[381326702,1756139448219,-151.0,0.00039719,120]
[381326704,1756139448228,-151.0,0.00039719,120]
[381326706,1756139448238,-251.11897888,0.00039719,120]
[381326708,1756139448247,-300.0,0.00039719,120]
[381326709,1756139448257,-500.0,0.00039719,120]
[381326711,1756139448270,-151.0,0.00039719,120]
[381326713,1756139448280,-260.4103811,0.00039719,120]
[381326716,1756139448290,-300.0,0.00039719,120]
[381326718,1756139448301,-500.0,0.00039719,120]
[381326720,1756139448312,-151.0,0.00039719,120]
[381326721,1756139448322,-411.86344857,0.00039719,120]
[381326723,1756139448332,-300.0,0.00039719,120]
[381326725,1756139448342,-500.0,0.00039719,120]
[381326728,1756139448353,-151.0,0.00039719,120]
[381326730,1756139448363,-151.33110986,0.00039719,120]
[381326732,1756139448374,-220.12329846,0.00039719,120]
[381326733,1756139448383,-500.0,0.00039719,120]
[381326736,1756139448395,-500.0,0.00039719,120]
[381326738,1756139448405,-500.0,0.00039719,120]
[381326739,1756139448416,-500.0,0.00039719,120]
[381326741,1756139448426,-151.0,0.00039719,30]
[381326744,1756139448436,-151.0,0.00039719,30]
[381326746,1756139448446,-250.0,0.00039719,120]
[381326748,1756139448456,-250.0,0.00039719,120]
[381326750,1756139448467,-151.0,0.00039719,30]
[381326752,1756139448477,-250.0,0.00039719,120]
[381326754,1756139448492,-151.0,0.00039719,30]
[381326756,1756139448502,-250.0,0.00039719,120]
[381326758,1756139448513,-151.0,0.00039719,30]
[381326760,1756139448524,-250.0,0.00039719,120]
[381326762,1756139448534,-250.0,0.00039719,120]
[381326764,1756139448544,-151.0,0.00039719,30]
[381326766,1756139448555,-151.0,0.00039719,30]
[381326768,1756139448565,-250.0,0.00039719,120]
[381326770,1756139448574,-250.0,0.00039719,120]
[381326772,1756139448584,-151.0,0.00039719,30]
[381326774,1756139448594,-250.0,0.00039719,120]
[381326776,1756139448604,-151.0,0.00039719,30]
[381326778,1756139448614,-250.0,0.00039719,120]
[381326780,1756139448624,-250.0,0.00039719,120]
[381326782,1756139448634,-151.0,0.00039719,30]
[381326783,1756139448646,-250.0,0.00039719,120]
[381326785,1756139448656,-151.0,0.00039719,30]
[381326787,1756139448666,-250.0,0.00039719,120]
[381326789,1756139448676,-250.0,0.00039719,120]
[381326791,1756139448686,-2404.14908448,0.00039719,120]
[381326793,1756139448696,-250.0,0.00039719,120]
[381326796,1756139448707,-151.0,0.00039719,30]
[381326797,1756139448717,-250.0,0.00039719,120]
[381326799,1756139448727,-250.0,0.00039719,120]
[381326801,1756139448737,-151.0,0.00039719,30]
[381326803,1756139448747,-173.51210332,0.00039721,2]
[381326805,1756139448757,-800.0,0.00039731,7]
[381326807,1756139448768,-2350.14209793,0.00039771,3]
[381326809,1756139448778,-293.35625419,0.00039771,3]
[381326811,1756139448790,-800.0,0.00039776,7]
[381326813,1756139448802,-376.30788339,0.00039777,2]
[381326814,1756139448812,-160.0,0.00039779,2]
[381326815,1756139448823,-160.0,0.00039779,2]
[381326816,1756139448834,-217.12848614,0.00039779,2]
[381326817,1756139448844,-5487.0995679,0.00039781,2]
[381326818,1756139448854,-151.0,0.00039781,15]
[381326819,1756139448865,-151.0,0.00039781,15]
[381326820,1756139448875,-151.0,0.00039781,15]
[381326821,1756139448885,-151.0,0.00039781,30]
[381326822,1756139448899,-151.0,0.00039781,30]
[381326823,1756139448910,-151.0,0.00039781,30]
[381326824,1756139448921,-151.0,0.00039781,30]
[381326825,1756139448931,-151.0,0.00039781,30]
[381326826,1756139448942,-217.73293,0.00039781,30]
[381326827,1756139448952,-151.0,0.00039781,30]
[381326829,1756139448963,-217.73293,0.00039781,30]
[381326831,1756139448973,-151.0,0.00039781,30]
[381326833,1756139448983,-151.0,0.00039781,30]
[381326835,1756139448993,-217.73293,0.00039781,30]
[381326837,1756139449003,-151.0,0.00039781,30]
[381326839,1756139449012,-217.73293,0.00039781,30]
[381326841,1756139449022,-283.741622,0.00039781,30]
[381326843,1756139449032,-151.0,0.00039781,30]
[381326845,1756139449042,-151.0,0.00039781,30]
[381326847,1756139449051,-151.0,0.00039781,30]
[381326849,1756139449061,-151.0,0.00039781,30]
[381326851,1756139449071,-151.0,0.00039781,30]
[381326853,1756139449081,-151.0,0.00039781,14]
[381326855,1756139449091,-151.0,0.00039781,30]
[381326857,1756139449101,-151.0,0.00039781,30]
[381326859,1756139449112,-151.0,0.00039781,30]
[381326861,1756139449122,-151.0,0.00039781,30]
[381326863,1756139449131,-151.0,0.00039781,30]
[381326864,1756139449142,-251.391073,0.00039781,30]
[381326866,1756139449153,-151.0,0.00039781,30]
[381326868,1756139449162,-151.0,0.00039781,30]
[381326870,1756139449172,-274.851093,0.00039781,30]
[381326872,1756139449182,-152.008388,0.00039781,30]
[381326874,1756139449192,-151.0,0.00039781,30]
[381326876,1756139449202,-151.0,0.00039781,30]
[381326878,1756139449212,-155.294016,0.00039781,30]
[381326880,1756139449222,-151.0,0.00039781,30]
[381326882,1756139449232,-209.661382,0.00039781,30]
[381326884,1756139449242,-209.661382,0.00039781,30]
[381326886,1756139449252,-209.661382,0.00039781,30]
[381326888,1756139449262,-209.661382,0.00039781,30]
[381326890,1756139449272,-151.0,0.00039781,30]
[381326892,1756139449282,-151.0,0.00039781,30]
[381326894,1756139449291,-151.0,0.00039781,30]
[381326896,1756139449303,-151.0,0.00039781,30]
[381326898,1756139449313,-213.350436,0.00039781,30]
[381326900,1756139449323,-151.0,0.00039781,30]
[381326902,1756139449333,-151.0,0.00039781,30]
[381326904,1756139449343,-151.0,0.00039781,30]
[381326906,1756139449353,-282.813,0.00039781,30]
[381326908,1756139449363,-151.0,0.00039781,30]
[381326910,1756139449372,-151.0,0.00039781,30]
[381326912,1756139449382,-151.0,0.00039781,30]
[381326914,1756139449392,-151.0,0.00039781,30]
[381326916,1756139449404,-432.40098766,0.00039818,2]
[381326918,1756139449414,-500.0,0.00039829,5]
[381326920,1756139449423,-199.0,0.00039831,120]
[381326940,1756139449434,-199.0,0.00039831,120]
[381326943,1756139449633,-500.0,0.00039833,5]
[381326945,1756139449645,-501.88207925,0.0003984,5]
[381326947,1756139449655,-500.0,0.0003984,5]
[381326949,1756139449665,-153.0,0.00039854,30]
[381326951,1756139449674,-153.0,0.00039858,30]
[381326953,1756139449684,-153.0,0.00039863,30]
[381326955,1756139449695,-153.0,0.00039863,30]
[381326956,1756139449704,-153.0,0.00039867,30]
[381326958,1756139449715,-160.0,0.00039872,2]
[381326960,1756139449726,-160.0,0.00039874,2]
[381326963,1756139449736,-160.0,0.00039874,2]
[381326965,1756139449746,-216.04034502,0.00039875,2]
[381326966,1756139449756,-1000.0,0.000399,2]
[381326968,1756139449766,-168.0,0.00039902,2]
[381326971,1756139449776,-281.17593498,0.00039908,5]
[381326972,1756139449786,-151.0,0.00039922,30]
[381326975,1756139449796,-151.0,0.00039922,30]
[381326977,1756139449806,-151.0,0.00039922,30]
[381326979,1756139449816,-151.0,0.00039922,30]
[381326981,1756139449826,-300.0,0.00039931,30]
[381326982,1756139449838,-151.0,0.00039931,30]
[381326985,1756139449848,-300.0,0.00039931,30]
[381326986,1756139449858,-151.0,0.00039931,30]
[381326988,1756139449867,-300.0,0.00039931,30]
[381326990,1756139449878,-151.0,0.00039931,30]
[381326992,1756139449887,-300.0,0.00039931,30]
[381326995,1756139449901,-151.0,0.00039931,30]
[381326997,1756139449911,-300.0,0.00039931,30]
[381326998,1756139449921,-300.0,0.00039931,30]
[381327000,1756139449930,-300.0,0.00039931,30]
[381327002,1756139449940,-300.0,0.00039931,30]
[381327004,1756139449951,-300.0,0.00039931,30]
[381327006,1756139449960,-151.663043,0.00039931,30]
[381327008,1756139449970,-151.0,0.00039931,30]
[381327010,1756139449980,-249.153603,0.00039931,30]
[381327012,1756139449991,-151.0,0.00039931,30]
[381327014,1756139450001,-151.501775,0.00039931,30]
[381327017,1756139450011,-151.957019,0.00039931,30]
[381327019,1756139450022,-151.0,0.00039931,30]
[381327020,1756139450032,-151.0,0.00039931,30]
[381327022,1756139450043,-151.0,0.00039931,30]
[381327025,1756139450054,-163.172449,0.00039931,30]
[381327027,1756139450064,-151.0,0.00039931,30]
[381327029,1756139450074,-151.0,0.00039931,30]
[381327031,1756139450084,-151.0,0.00039931,30]
[381327032,1756139450093,-151.0,0.00039931,30]